{"text_format":"3","workbook":"xlsx","n_sheets":6,"sheets":["Uvod","Pom2_VD","Pom","Kalkulacka","Vyhodnoceni_TSS","Tisk"],"not_rendered":{"images":1,"macros":1,"defined_names":4},"read":"whole","date_system":"1900"}

{"sheet":"Uvod","index":0,"n_rows":12,"n_cols":3,"rows_kept":12,"merged":[[0,0,1,15],[4,2,5,13]]}
["KB KALKULAČKA PAUŠÁLNÍ DAŇ"]
[]
[]
[]
[null,null,"KB KALKULAČKA PAUŠÁLNÍ DAŇ slouží výhradně pro kalkulaci akceptovatelného ročního příjmu a zadávání do aplikace TSS/CLO u klienta přihlášeného v režimu paušální daně. "]
[]
[]
[]
[]
[]
[]
[null,null,"Aktuální verze aplikace: 3.1"]

{"sheet":"Pom2_VD","index":1,"n_rows":29,"n_cols":2,"rows_kept":29}
{"$rows_empty":17}
["Příjmy",{"$f":"H2","v":0}]
["Sazba daně",6208]
["Sazba daně",{"$f":"B19","v":6208}]
["Roční daň",{"$f":"B20*12","v":74496}]
["Příjmy nad 2M?",{"$f":"IF(B18>2000000,2000000,B18)","v":0}]
["Výdaje",{"v":0.4,"d":"40%"}]
["Upravené příjmy",{"$f":"IF(B18<2000000,MAX(0,(B18-B21-(B23*B18))),MAX(0,(B22-B21-(B23*B22))))","v":0}]
["Prohlášené příjmy"]
["Konečné příjmy",{"$f":"MIN(B24,B25)","v":0}]
[]
[]
["Nezadaná všechna data?",{"$f":"OR(Kalkulacka!D6=0,Kalkulacka!D8=0,Kalkulacka!D10=0,Kalkulacka!E12=0,Kalkulacka!D6=\"\",Kalkulacka!D8=\"\",Kalkulacka!D10=\"\",Kalkulacka!E12=\"\")","v":true}]

{"sheet":"Pom","index":2,"n_rows":36,"n_cols":7,"rows_kept":36}
[]
[]
[null,"Součet příjmů:",{"$f":"SUM(Kalkulacka!D19,Kalkulacka!D21,Kalkulacka!D23,Kalkulacka!D25,Kalkulacka!D27,Kalkulacka!D29,Kalkulacka!D31,Kalkulacka!D33,Kalkulacka!D35,Kalkulacka!D37,Kalkulacka!D39,Kalkulacka!D41,Kalkulacka!F19,Kalkulacka!F21,Kalkulacka!F23,Kalkulacka!F25,Kalkulacka!F27,Kalkulacka!F29,Kalkulacka!F31,Kalkulacka!F33,Kalkulacka!F35,Kalkulacka!F37,Kalkulacka!F39,Kalkulacka!F41)","v":0},{"$nulls":3},"Roky"]
[null,"Příjmy nad 2M?:",{"$f":"IF(C3>2000000,\"ERROR\",C3)","v":0},{"$f":"IF(Kalkulacka!E12>2000000,\"ERROR\",Kalkulacka!E12)","v":0},null,null,2022]
[null,"Výdaje:",{"v":0.3,"d":"30%"}]
[null,"Měsíční konstanta:",6208,{"$f":"C6","v":6208}]
[null,"Upravené příjmy:",{"$f":"MAX(0,C3-(C5*C3)-(12*C6))","v":0},{"$f":"MAX(0,C3-(C5*C3)-(12*D6))","v":0}]
[null,"Rok",2021,2022]
[null,"Konečné příjmy:",{"$f":"MIN(C7,Kalkulacka!E12)","v":0},{"$f":"MIN(D7,Kalkulacka!E12)","v":0},null,{"$f":"Pom!D9","v":0}]
[]
[null,"2. příjem",false]
[]
[null,null,"1. Příjem","2. Příjem"]
[null,"Id klienta",{"$f":"Kalkulacka!D6","v":0},{"$f":"Kalkulacka!D6","v":0}]
[null,"Jméno klienta",{"$f":"Kalkulacka!D8","v":0},{"$f":"Kalkulacka!D8","v":0}]
[null,"Datum žádosti",{"$f":"Kalkulacka!D10","v":"00:00:00"},{"$f":"Kalkulacka!D10","v":"00:00:00"}]
[null,"Prohlášený příjem",{"$f":"Kalkulacka!E12","v":0},{"$f":"Kalkulacka!E12","v":0}]
[null,null,{"$f":"OR(C14=0,C14=\" \",C15=0,C15=\" \",C16=0,C16=\" \",C17=0,C17=\" \")","v":true},{"$f":"OR(D14=0,D14=\" \",D15=0,D15=\" \",D16=0,D16=\" \",D17=0,D17=\" \")","v":true}]
[null,"něco není zadáno",{"$f":"IF(C18=TRUE,1,0)","v":1},{"$f":"IF(D18=TRUE,1,0)","v":1}]
[null,"1. měsíc",{"$f":"Kalkulacka!D19","v":0},{"$f":"Kalkulacka!F19","v":0}]
[null,"2. měsíc",{"$f":"Kalkulacka!D21","v":0},{"$f":"Kalkulacka!F21","v":0}]
[null,"3. měsíc",{"$f":"Kalkulacka!D23","v":0},{"$f":"Kalkulacka!F23","v":0}]
[null,"4. měsíc",{"$f":"Kalkulacka!D25","v":0},{"$f":"Kalkulacka!F25","v":0}]
[null,"5. měsíc",{"$f":"Kalkulacka!D27","v":0},{"$f":"Kalkulacka!F27","v":0}]
[null,"6. měsíc",{"$f":"Kalkulacka!D29","v":0},{"$f":"Kalkulacka!F29","v":0}]
[null,"7. měsíc",{"$f":"Kalkulacka!D31","v":0},{"$f":"Kalkulacka!F31","v":0}]
[null,"8. měsíc",{"$f":"Kalkulacka!D33","v":0},{"$f":"Kalkulacka!F33","v":0}]
[null,"9. měsíc",{"$f":"Kalkulacka!D35","v":0},{"$f":"Kalkulacka!F35","v":0}]
[null,"10. měsíc",{"$f":"Kalkulacka!D37","v":0},{"$f":"Kalkulacka!F37","v":0}]
[null,"11. měsíc",{"$f":"Kalkulacka!D39","v":0},{"$f":"Kalkulacka!F39","v":0}]
[null,"12. měsíc",{"$f":"Kalkulacka!D41","v":0},{"$f":"Kalkulacka!F41","v":0}]
[null,null,{"$f":"OR(C20=\" \",C21=\" \",C22=\" \",C23=\" \",C24=\" \",C25=\" \",C26=\" \",C27=\" \",C28=\" \",C29=\" \",C30=\" \",C31=\" \")","v":false},{"$f":"OR(D20=\" \",D21=\" \",D22=\" \",D23=\" \",D24=\" \",D25=\" \",D26=\" \",D27=\" \",D28=\" \",D29=\" \",D30=\" \",D31=\" \",C20=\" \",C21=\" \",C22=\" \",C23=\" \",C24=\" \",C25=\" \",C26=\" \",C27=\" \",C28=\" \",C29=\" \",C30=\" \",C31=\" \")","v":false}]
[null,"něco není zadáno",{"$f":"IF(C32=TRUE,1,0)","v":0},{"$f":"IF(D32=TRUE,1,0)","v":0}]
[null,"1 = něco chybí; 0 = všechno je vyplněno"]
[]
[null,null,{"$f":"COUNTIFS(C20:C31,\"=0\")","v":12},{"$f":"COUNTIFS(D20:D31,\"=0\")","v":12},{"$f":"OR(C36>2,D36>2)","v":true}]

{"sheet":"Kalkulacka","index":3,"n_rows":41,"n_cols":4,"rows_kept":41,"merged":[[0,0,1,15],[5,3,5,4],[7,3,7,4],[9,3,9,4],[11,2,11,3],[14,2,14,6]]}
["PAUŠÁLNÍ DAŇ - AKCEPTOVATELNÁ VÝŠE PŘÍJMŮ Z PODNIKÁNÍ"]
[]
[]
[]
[]
[null,null,"ID klienta (KBI ID):"]
[{"$nulls":3},"Kalkulacka_pauslani_dan"]
[null,null,"Jméno klienta:"]
[]
[null,null,"Datum žádosti:"]
[]
[null,null,"Prohlášený příjem klienta dle Čestného prohlášení z výše příjmu z podnikání (CPS - roční):\n(šablona CESTPRPC)"]
[]
[]
[null,null,"Příjem max. od dvou plátců (za posledních 12 ukončených kalendářních měsíců dle výpisů/transakční historie):"]
[]
[]
[]
[null,null,"1. měsíc "]
[]
[null,null,"2. měsíc "]
[]
[null,null,"3. měsíc "]
[]
[null,null,"4. měsíc"]
[]
[null,null,"5. měsíc "]
[]
[null,null,"6. měsíc"]
[]
[null,null,"7. měsíc"]
[]
[null,null,"8. měsíc "]
[]
[null,null,"9. měsíc "]
[]
[null,null,"10. měsíc "]
[]
[null,null,"11. měsíc "]
[]
[null,null,"12. měsíc "]

{"sheet":"Vyhodnoceni_TSS","index":4,"n_rows":15,"n_cols":15,"rows_kept":15,"merged":[[0,0,1,15],[2,8,2,12],[2,14,2,15],[6,3,7,7],[9,8,9,12],[9,14,9,15],[14,5,14,6],[14,9,14,10]]}
["AKCEPTOVATELNÁ VÝŠE PŘÍJMŮ Z PODNIKÁNÍ PRO TSS/CLO"]
[]
[null,null,"Příjmy ze zaměstnání",{"$nulls":5},"Příjmy z podnikání",{"$nulls":5},"Ostatní příjmy"]
[]
[{"$nulls":3},"Způsob prokázání příjmů",{"$nulls":4},"▼"]
[]
[{"$nulls":3},"Příjmy z podnikatelské činnosti - roční\nčistý příjem z daňového přiznání",{"$nulls":5},{"$f":"Pom!F9","v":0}]
[]
[]
[null,null,"Příjmy ze zaměstnání",{"$nulls":5},"Příjmy z podnikání",{"$nulls":5},"Ostatní příjmy"]
[]
[]
[{"$nulls":5},"Počet doplňkových příjmů",{"$nulls":3},1,"▼"]
[]
[{"$nulls":5},"Paušální daň",{"$nulls":3},0]

{"sheet":"Tisk","index":5,"n_rows":45,"n_cols":6,"rows_kept":45,"merged":[[0,1,2,14],[4,3,4,4],[6,3,6,4],[8,3,8,4],[10,2,10,3],[12,2,12,6]]}
[null,"k "]
[]
[]
[]
[null,null,"ID klienta/Datum narození:",{"$f":"Kalkulacka!D6","v":0}]
[{"$nulls":3},""]
[null,null,"Jméno klienta:",{"$f":"Kalkulacka!D8","v":0}]
[]
[null,null,"Datum žádosti:",{"$f":"Kalkulacka!D10","v":"00:00:00"}]
[]
[null,null,"Prohlášený příjem klienta dle Čestného prohlášení z výše příjmu z podnikání (CPS - roční):\n(šablona CESTPRPC)",null,{"$f":"Kalkulacka!E12","v":{"v":0,"d":"0 Kč"}}]
[]
[null,null,"Příjem max. od dvou plátců (za jednotlivé měsíce dle výpisů/transakční historie):"]
[]
[{"$nulls":3},"Příjem od prvního plátce\n(subjektu):",null,"Příjem od druhého plátce (subjektu):"]
[]
[null,null,"1. měsíc",{"$f":"Kalkulacka!D19","v":0},null,{"$f":"Kalkulacka!F19","v":0}]
[]
[null,null,"2. měsíc ",{"$f":"Kalkulacka!D21","v":0},null,{"$f":"Kalkulacka!F21","v":0}]
[]
[null,null,"3. měsíc ",{"$f":"Kalkulacka!D23","v":0},null,{"$f":"Kalkulacka!F23","v":0}]
[]
[null,null,"4. měsíc",{"$f":"Kalkulacka!D25","v":0},null,{"$f":"Kalkulacka!F25","v":0}]
[]
[null,null,"5. měsíc ",{"$f":"Kalkulacka!D27","v":0},null,{"$f":"Kalkulacka!F27","v":0}]
[]
[null,null,"6. měsíc",{"$f":"Kalkulacka!D29","v":0},null,{"$f":"Kalkulacka!F29","v":0}]
[]
[null,null,"7. měsíc ",{"$f":"Kalkulacka!D31","v":0},null,{"$f":"Kalkulacka!F31","v":0}]
[]
[null,null,"8. měsíc",{"$f":"Kalkulacka!D33","v":0},null,{"$f":"Kalkulacka!F33","v":0}]
[]
[null,null,"9. měsíc ",{"$f":"Kalkulacka!D35","v":0},null,{"$f":"Kalkulacka!F35","v":0}]
[]
[null,null,"10. měsíc",{"$f":"Kalkulacka!D37","v":0},null,{"$f":"Kalkulacka!F37","v":0}]
[]
[null,null,"11. měsíc",{"$f":"Kalkulacka!D39","v":0},null,{"$f":"Kalkulacka!F39","v":0}]
[]
[null,null,"12. měsíc",{"$f":"Kalkulacka!D41","v":0},null,{"$f":"Kalkulacka!F41","v":0}]
[]
[null,null,"Akceptovatelná výše příjmů zadaná do TSS/CLO:",null,{"$f":"Vyhodnoceni_TSS!J7","v":0}]
[]
[]
[null,null,{"$f":"TODAY()","v":"2023-06-30"}]
[null,null,"Datum",null,"Podpis"]